[Event "XII Paracin Festival 2019"]
[Site "Paracin"]
[Date "2019.07.05"]
[Round "1.17"]
[White "Vidic, Teja"]
[Black "Song, Raymond"]
[Result "0-1"]
[ECO "A06"]
[WhiteElo "2166"]
[BlackElo "2456"]
[Annotator "ChessBase"]
[PlyCount "84"]
[EventDate "2019.07.05"]
[EventType "swiss"]
[EventCountry "SRB"]
[SourceTitle "playchess.com"]
[Source "ChessBase"]
[SourceQuality "1"]
[TimeControl "5400+30"]

1. c4 {[%emt 0:00:00]} Nf6 {[%emt 0:00:00]} 2. Nf3 {[%emt 0:00:00]} e6 {[%emt 0:00:00]} 3. b3 {[%emt 0:00:00]} d5 {[%emt 0:01:00]} 4. Bb2 {[%emt 0:00:00]} c5 {[%emt 0:00:33]} 5. e3 {[%emt 0:02:16]} Nc6 {[%emt 0:00:28]} 6. g3 {[%emt 0:00:42]} d4 {[%emt 0:01:11]} 7. exd4 {[%emt 0:00:30]} cxd4 {[%emt 0:00:18]} 8. Bg2 {[%emt 0:02:16]} e5 {[%emt 0:03:57]} 9. O-O {[%emt 0:06:05]} Bd6 {[%emt 0:00:10]} 10. Re1 {[%emt 0:01:13]} O-O {[%emt 0:00:48]} 11. d3 {[%emt 0:18:22]} Re8 {[%emt 0:01:35]} 12. Na3 {[%emt 0:01:51]} h6 {[%emt 0:02:45]} 13. Nc2 {[%emt 0:13:47]} a5 {[%emt 0:12:53]} 14. a3 {[%emt 0:00:50]} Qb6 {[%emt 0:05:51]} 15. Rb1 {[%emt 0:02:56]} Bf5 {[%emt 0:06:07]} 16. Ba1 {[%emt 0:07:36]} Qa6 {[%emt 0:02:50]} 17. b4 {[%emt 0:02:25]} axb4 {[%emt 0:00:58]} 18. axb4 {[%emt 0:00:06]} b5 {[%emt 0:00:11]} 19. c5 {[%emt 0:06:30]} Bc7 {[%emt 0:01:04]} 20. Bb2 {[%emt 0:05:10]} Qc8 {[%emt 0:00:22]} 21. Nfxd4 {[%emt 0:06:38]} Nxd4 {[%emt 0:01:25]} 22. Nxd4 {[%emt 0:01:30]} exd4 {[%emt 0:02:06]} 23. Rxe8+ {[%emt 0:00:04]} Nxe8 {[%emt 0:00:49]} 24. Qf3 {[%emt 0:04:13]} Rb8 {[%emt 0:01:33]} 25. Re1 {[%emt 0:01:50]} Be6 {[%emt 0:02:40]} 26. Bxd4 {[%emt 0:00:24]} Qd7 {[%emt 0:00:05]} 27. Bc3 {[%emt 0:03:51]} Rd8 {[%emt 0:00:09]} 28. Bf1 {[%emt 0:00:53]} Bd5 {[%emt 0:01:03]} 29. Qe3 {[%emt 0:00:50]} Bc6 {[%emt 0:01:19]} 30. Ra1 {[%emt 0:04:58]} Qd5 {[%emt 0:01:30]} 31. Qe4 {[%emt 0:00:04]} Qd7 {[%emt 0:05:30]} 32. Qh4 {[%emt 0:01:33]} Nf6 {[%emt 0:07:28]} 33. Ra7 {[%emt 0:03:39]} Nd5 {[%emt 0:01:22]} 34. Be5 {[%emt 0:00:58]} Ra8 {[%emt 0:03:08]} 35. Bh3 {[%emt 0:00:11]} Qe8 {[%emt 0:00:14]} 36. Rxa8 {[%emt 0:01:29]} Qxa8 {[%emt 0:00:27]} 37. Bb2 {[%emt 0:01:01]} Qa2 {[%emt 0:00:39]} 38. Qd4 {[%emt 0:00:52]} Qb1+ {[%emt 0:00:07]} 39. Bf1 {[%emt 0:00:07]} Nf6 {[%emt 0:02:25]} 40. Qc3 {[%emt 0:00:04]} Qd1 {[%emt 0:00:23]} 41. d4 {[%emt 0:01:28]} Nd5 {[%emt 0:00:07]} 42. Qa3 {[%emt 0:00:13]} Nxb4 {[%emt 0:02:42]} 0-1

[Event "XII Paracin Festival 2019"]
[Site "Paracin"]
[Date "2019.07.05"]
[Round "1.18"]
[White "Pikula, Dejan"]
[Black "Terziev, Dimo"]
[Result "1-0"]
[ECO "A48"]
[WhiteElo "2447"]
[BlackElo "2166"]
[Annotator "NA"]
[PlyCount "99"]
[EventDate "2019.07.05"]
[EventType "swiss"]
[EventCountry "SRB"]
[SourceTitle "playchess.com"]
[Source "ChessBase"]
[SourceQuality "1"]
[TimeControl "5400+30"]

1. d4 {[%emt 0:00:00]} Nf6 {[%emt 0:00:00]} 2. Nf3 {[%emt 0:00:00]} g6 {[%emt 0:00:00]} 3. Bf4 {[%emt 0:00:03]} Bg7 {[%emt 0:00:27]} 4. e3 {[%emt 0:00:06]} O-O {[%emt 0:00:21]} 5. Be2 {[%emt 0:00:02]} d6 {[%emt 0:00:10]} 6. O-O {[%emt 0:00:07]} Nh5 {[%emt 0:00:39]} 7. Bg5 {[%emt 0:00:05]} h6 {[%emt 0:00:21]} 8. Bh4 {[%emt 0:00:06]} g5 {[%emt 0:00:54]} 9. Nfd2 {[%emt 0:00:06]} Nf4 {[%emt 0:00:51]} 10. exf4 {[%emt 0:00:05]} gxh4 {[%emt 0:00:09]} 11. c3 {[%emt 0:00:04]} c5 {[%emt 0:10:39]} 12. d5 {[%emt 0:01:56]} Bf5 {[%emt 0:02:04]} 13. Nc4 {[%emt 0:00:20]} Nd7 {[%emt 0:07:53]} 14. Ne3 {[%emt 0:06:49]} Bh7 {[%emt 0:00:03]} 15. a4 {[%emt 0:00:08]} a6 {[%emt 0:02:18]} 16. Bd3 {[%emt 0:03:25]} Bxd3 {[%emt 0:01:54]} 17. Qxd3 {[%emt 0:00:59]} Nf6 {[%emt 0:10:01]} 18. Nd2 {[%emt 0:02:13]} e6 {[%emt 0:02:20]} 19. Ndc4 {[%emt 0:08:01]} b5 {[%emt 0:05:48]} 20. axb5 {[%emt 0:00:34]} axb5 {[%emt 0:00:02]} 21. Rxa8 {[%emt 0:00:11]} Qxa8 {[%emt 0:00:13]} 22. Nxd6 {[%emt 0:00:11]} c4 {[%emt 0:00:34]} 23. Qc2 {[%emt 0:03:56]} Qa6 {[%emt 0:07:33]} 24. Ne4 {[%emt 0:03:46]} Nxd5 {[%emt 0:00:49]} 25. g3 {[%emt 0:07:45]} hxg3 {[%emt 0:02:21]} 26. hxg3 {[%emt 0:00:06]} Nxe3 {[%emt 0:07:33]} 27. fxe3 {[%emt 0:00:05]} f5 {[%emt 0:01:00]} 28. Nf2 {[%emt 0:00:50]} e5 {[%emt 0:06:15]} 29. Qd2 {[%emt 0:00:19]} e4 {[%emt 0:06:32]} 30. Rd1 {[%emt 0:09:39]} Qg6 {[%emt 0:01:45]} 31. Kg2 {[%emt 0:00:04]} Kh8 {[%emt 0:03:44]} 32. Qd6 {[%emt 0:13:13]} Qxd6 {[%emt 0:05:00]} 33. Rxd6 {[%emt 0:00:07]} b4 {[%emt 0:01:21]} 34. g4 {[%emt 0:01:17]} bxc3 {[%emt 0:01:39]} 35. bxc3 {[%emt 0:00:05]} fxg4 {[%emt 0:04:17]} 36. Nxg4 {[%emt 0:00:07]} h5 {[%emt 0:00:40]} 37. Nf2 {[%emt 0:00:14]} Re8 {[%emt 0:01:54]} 38. Rc6 {[%emt 0:02:30]} Bxc3 {[%emt 0:00:55]} 39. Rxc4 {[%emt 0:00:02]} Bd2 {[%emt 0:00:34]} 40. Nd1 {[%emt 0:00:42]} h4 {[%emt 0:02:48]} 41. Rd4 {[%emt 0:01:36]} Bc1 {[%emt 0:02:17]} 42. Kh3 {[%emt 0:00:23]} Kg7 {[%emt 0:00:34]} 43. Kxh4 {[%emt 0:00:03]} Kf6 {[%emt 0:00:23]} 44. Kg3 {[%emt 0:00:03]} Kf5 {[%emt 0:00:19]} 45. Rd5+ {[%emt 0:00:05]} Kf6 {[%emt 0:00:12]} 46. Nf2 {[%emt 0:02:36]} Rg8+ {[%emt 0:03:20]} 47. Ng4+ {[%emt 0:00:05]} Kf7 {[%emt 0:00:18]} 48. Rf5+ {[%emt 0:00:07]} Ke6 {[%emt 0:00:53]} 49. Re5+ {[%emt 0:02:37]} Kf7 {[%emt 0:00:17]} 50. Rxe4 {[%emt 0:00:09]} 1-0

[Event "XII Paracin Festival 2019"]
[Site "Paracin"]
[Date "2019.07.05"]
[Round "1.19"]
[White "Mehmed, Elif"]
[Black "Cabarkapa, Novak"]
[Result "0-1"]
[ECO "B01"]
[WhiteElo "2164"]
[BlackElo "2444"]
[Annotator "NA"]
[PlyCount "102"]
[EventDate "2019.07.05"]
[EventType "swiss"]
[EventCountry "SRB"]
[SourceTitle "playchess.com"]
[Source "ChessBase"]
[SourceQuality "1"]
[TimeControl "5400+30"]

1. e4 {[%emt 0:00:00]} d5 {[%emt 0:00:00]} 2. exd5 {[%emt 0:00:00]} Qxd5 {[%emt 0:00:00]} 3. Nf3 {[%emt 0:00:00]} Bg4 {[%emt 0:00:18]} 4. Be2 {[%emt 0:00:00]} Nc6 {[%emt 0:00:07]} 5. Nc3 {[%emt 0:01:51]} Qd7 {[%emt 0:00:50]} 6. h3 {[%emt 0:00:53]} Bxf3 {[%emt 0:00:37]} 7. Bxf3 {[%emt 0:00:08]} O-O-O {[%emt 0:00:09]} 8. O-O {[%emt 0:03:21]} e5 {[%emt 0:07:07]} 9. a3 {[%emt 0:01:01]} f5 {[%emt 0:04:28]} 10. d3 {[%emt 0:03:21]} h6 {[%emt 0:08:27]} 11. Re1 {[%emt 0:03:35]} Bd6 {[%emt 0:02:37]} 12. Nb5 {[%emt 0:03:45]} Nge7 {[%emt 0:03:11]} 13. Be3 {[%emt 0:01:31]} Kb8 {[%emt 0:04:50]} 14. b4 {[%emt 0:03:02]} a6 {[%emt 0:03:16]} 15. Nxd6 {[%emt 0:04:09]} Qxd6 {[%emt 0:00:57]} 16. Bc5 {[%emt 0:05:57]} Qf6 {[%emt 0:01:35]} 17. b5 {[%emt 0:01:18]} axb5 {[%emt 0:07:55]} 18. Qb1 {[%emt 0:00:07]} e4 {[%emt 0:14:01]} 19. dxe4 {[%emt 0:04:52]} Ne5 {[%emt 0:00:35]} 20. Qb3 {[%emt 0:01:48]} N7c6 {[%emt 0:03:29]} 21. exf5 {[%emt 0:01:50]} Qxf5 {[%emt 0:02:57]} 22. Be4 {[%emt 0:01:46]} Nf3+ {[%emt 0:00:50]} 23. Bxf3 {[%emt 0:13:54]} Qxc5 {[%emt 0:00:08]} 24. Bxc6 {[%emt 0:00:17]} bxc6 {[%emt 0:03:05]} 25. Re2 {[%emt 0:09:33]} Rhe8 {[%emt 0:03:19]} 26. Rxe8 {[%emt 0:11:59]} Rxe8 {[%emt 0:00:09]} 27. c4 {[%emt 0:00:10]} Qxc4 {[%emt 0:04:21]} 28. Qxc4 {[%emt 0:00:07]} bxc4 {[%emt 0:00:04]} 29. Rc1 {[%emt 0:01:09]} Re4 {[%emt 0:04:03]} 30. Kf1 {[%emt 0:05:05]} Kb7 {[%emt 0:02:04]} 31. Rc3 {[%emt 0:02:52]} Kb6 {[%emt 0:01:32]} 32. f3 {[%emt 0:00:52]} Rd4 {[%emt 0:01:26]} 33. Ke2 {[%emt 0:00:05]} Kc5 {[%emt 0:03:57]} 34. g3 {[%emt 0:01:24]} Rd8 {[%emt 0:00:49]} 35. f4 {[%emt 0:00:45]} Kd4 {[%emt 0:01:04]} 36. Kd2 {[%emt 0:04:52]} g5 {[%emt 0:02:55]} 37. Rf3 {[%emt 0:04:03]} Ke4+ {[%emt 0:00:14]} 38. Ke2 {[%emt 0:00:05]} Rb8 {[%emt 0:00:07]} 39. Rc3 {[%emt 0:01:59]} Kd4 {[%emt 0:02:26]} 40. Kd2 {[%emt 0:00:39]} Rb2+ {[%emt 0:02:01]} 41. Rc2 {[%emt 0:00:05]} Rb3 {[%emt 0:00:04]} 42. fxg5 {[%emt 0:01:51]} hxg5 {[%emt 0:00:20]} 43. h4 {[%emt 0:00:25]} g4 {[%emt 0:00:17]} 44. Kc1 {[%emt 0:00:37]} Rxg3 {[%emt 0:00:13]} 45. Rd2+ {[%emt 0:00:21]} Ke3 {[%emt 0:01:29]} 46. a4 {[%emt 0:01:31]} Rg1+ {[%emt 0:00:43]} 47. Kc2 {[%emt 0:00:04]} g3 {[%emt 0:00:06]} 48. Rd8 {[%emt 0:00:34]} g2 {[%emt 0:00:10]} 49. Re8+ {[%emt 0:00:44]} Kd4 {[%emt 0:00:12]} 50. Rd8+ {[%emt 0:00:09]} Kc5 {[%emt 0:00:07]} 51. Rg8 {[%emt 0:00:12]} Ra1 {[%emt 0:00:05]} 0-1

[Event "XII Paracin Festival 2019"]
[Site "Paracin"]
[Date "2019.07.05"]
[Round "1.20"]
[White "Froewis, Georg"]
[Black "Ostojic, Katarina"]
[Result "1-0"]
[ECO "A46"]
[WhiteElo "2434"]
[BlackElo "2164"]
[Annotator "NA"]
[PlyCount "109"]
[EventDate "2019.07.05"]
[EventType "swiss"]
[EventCountry "SRB"]
[SourceTitle "playchess.com"]
[Source "ChessBase"]
[SourceQuality "1"]
[TimeControl "5400+30"]

1. d4 {[%emt 0:00:00]} Nf6 {[%emt 0:00:00]} 2. Nf3 {[%emt 0:00:00]} c5 {[%emt 0:01:39]} 3. e3 {[%emt 0:00:26]} cxd4 {[%emt 0:01:05]} 4. exd4 {[%emt 0:00:02]} d5 {[%emt 0:00:10]} 5. c3 {[%emt 0:00:06]} g6 {[%emt 0:01:13]} 6. Bd3 {[%emt 0:00:19]} Bg7 {[%emt 0:00:23]} 7. O-O {[%emt 0:00:05]} O-O {[%emt 0:00:33]} 8. Re1 {[%emt 0:00:17]} Nc6 {[%emt 0:01:26]} 9. Bf4 {[%emt 0:00:09]} Bg4 {[%emt 0:06:57]} 10. Nbd2 {[%emt 0:00:10]} Qb6 {[%emt 0:01:41]} 11. Qb3 {[%emt 0:01:22]} Qxb3 {[%emt 0:02:37]} 12. axb3 {[%emt 0:00:02]} Bxf3 {[%emt 0:02:20]} 13. Nxf3 {[%emt 0:00:02]} e6 {[%emt 0:01:09]} 14. b4 {[%emt 0:01:42]} Nh5 {[%emt 0:03:26]} 15. Be3 {[%emt 0:01:06]} Rfe8 {[%emt 0:04:14]} 16. b5 {[%emt 0:01:55]} Ne7 {[%emt 0:02:16]} 17. Ra2 {[%emt 0:00:37]} Nc8 {[%emt 0:05:18]} 18. Rea1 {[%emt 0:00:20]} b6 {[%emt 0:02:57]} 19. Ne5 {[%emt 0:00:20]} Bxe5 {[%emt 0:14:53]} 20. dxe5 {[%emt 0:00:02]} Rb8 {[%emt 0:00:00]} 21. g4 {[%emt 0:12:29]} Ng7 {[%emt 0:00:14]} 22. Rxa7 {[%emt 0:04:43]} Nxa7 {[%emt 0:03:07]} 23. Rxa7 {[%emt 0:00:03]} Rec8 {[%emt 0:01:12]} 24. Ra6 {[%emt 0:01:24]} Ne8 {[%emt 0:04:43]} 25. Rxb6 {[%emt 0:00:09]} Rxb6 {[%emt 0:01:59]} 26. Bxb6 {[%emt 0:00:03]} Nc7 {[%emt 0:00:35]} 27. Ba7 {[%emt 0:00:51]} Na8 {[%emt 0:06:33]} 28. Kg2 {[%emt 0:11:12]} Rc7 {[%emt 0:01:15]} 29. Be3 {[%emt 0:03:02]} Rc8 {[%emt 0:02:36]} 30. Kf3 {[%emt 0:02:24]} Kf8 {[%emt 0:03:49]} 31. Bd4 {[%emt 0:02:32]} Ke8 {[%emt 0:02:02]} 32. b3 {[%emt 0:01:57]} Kd7 {[%emt 0:05:00]} 33. c4 {[%emt 0:00:38]} dxc4 {[%emt 0:00:18]} 34. bxc4 {[%emt 0:00:02]} Kc7 {[%emt 0:00:16]} 35. c5 {[%emt 0:00:17]} Rd8 {[%emt 0:03:04]} 36. Ke3 {[%emt 0:00:07]} Kb8 {[%emt 0:01:59]} 37. b6 {[%emt 0:00:07]} Nc7 {[%emt 0:01:00]} 38. bxc7+ {[%emt 0:00:07]} Kxc7 {[%emt 0:00:01]} 39. Be4 {[%emt 0:00:36]} Rh8 {[%emt 0:01:59]} 40. Bc3 {[%emt 0:00:21]} Kb8 {[%emt 0:02:09]} 41. Ba5 {[%emt 0:00:12]} Ka7 {[%emt 0:01:53]} 42. Bc7 {[%emt 0:00:08]} h5 {[%emt 0:02:20]} 43. g5 {[%emt 0:00:15]} Ka6 {[%emt 0:00:49]} 44. Bd6 {[%emt 0:00:08]} Rc8 {[%emt 0:00:29]} 45. c6 {[%emt 0:00:26]} Kb6 {[%emt 0:00:22]} 46. c7 {[%emt 0:00:06]} Rh8 {[%emt 0:01:43]} 47. h4 {[%emt 0:00:13]} Rg8 {[%emt 0:00:08]} 48. Kd2 {[%emt 0:00:37]} Re8 {[%emt 0:00:17]} 49. Kc3 {[%emt 0:00:06]} Rg8 {[%emt 0:00:12]} 50. Kb4 {[%emt 0:00:05]} Rh8 {[%emt 0:00:39]} 51. Bc2 {[%emt 0:00:34]} Kb7 {[%emt 0:00:40]} 52. Kb5 {[%emt 0:00:16]} Rg8 {[%emt 0:01:18]} 53. Be4+ {[%emt 0:00:11]} Kc8 {[%emt 0:00:21]} 54. Kc6 {[%emt 0:00:08]} Re8 {[%emt 0:00:08]} 55. Bd3 {[%emt 0:00:06]} 1-0

[Event "XII Paracin Festival 2019"]
[Site "Paracin"]
[Date "2019.07.05"]
[Round "1.21"]
[White "Janjic, Stefan"]
[Black "Radovanovic, Nikola"]
[Result "0-1"]
[ECO "A48"]
[WhiteElo "2164"]
[BlackElo "2431"]
[Annotator "NA"]
[PlyCount "68"]
[EventDate "2019.07.05"]
[EventType "swiss"]
[EventCountry "SRB"]
[SourceTitle "playchess.com"]
[Source "ChessBase"]
[SourceQuality "1"]
[TimeControl "5400+30"]

1. d4 {[%emt 0:00:00]} Nf6 {[%emt 0:00:45]} 2. Nf3 {[%emt 0:00:00]} g6 {[%emt 0:00:09]} 3. Bg5 {[%emt 0:00:10]} Bg7 {[%emt 0:00:08]} 4. Nbd2 {[%emt 0:00:19]} O-O {[%emt 0:00:14]} 5. e4 {[%emt 0:00:36]} d6 {[%emt 0:00:04]} 6. c3 {[%emt 0:00:12]} c5 {[%emt 0:00:10]} 7. d5 {[%emt 0:00:34]} b6 {[%emt 0:01:59]} 8. a4 {[%emt 0:03:47]} Na6 {[%emt 0:02:03]} 9. Bd3 {[%emt 0:16:25]} h6 {[%emt 0:00:59]} 10. Bh4 {[%emt 0:01:51]} Nc7 {[%emt 0:00:38]} 11. O-O {[%emt 0:03:53]} Ba6 {[%emt 0:14:13]} 12. Bxa6 {[%emt 0:09:18]} Nxa6 {[%emt 0:00:22]} 13. Rc1 {[%emt 0:12:20]} Qd7 {[%emt 0:07:39]} 14. Qb3 {[%emt 0:06:15]} Nc7 {[%emt 0:02:06]} 15. Qa3 {[%emt 0:10:14]} Nh5 {[%emt 0:09:16]} 16. Rfe1 {[%emt 0:04:17]} Rae8 {[%emt 0:07:34]} 17. Qb3 {[%emt 0:03:44]} g5 {[%emt 0:04:41]} 18. Bg3 {[%emt 0:00:13]} f5 {[%emt 0:00:34]} 19. exf5 {[%emt 0:07:56]} Qxf5 {[%emt 0:01:11]} 20. Re2 {[%emt 0:02:12]} Qxd5 {[%emt 0:04:45]} 21. Qd1 {[%emt 0:04:58]} Qf7 {[%emt 0:04:23]} 22. Qe1 {[%emt 0:00:20]} Nd5 {[%emt 0:02:51]} 23. Nf1 {[%emt 0:02:26]} Nhf4 {[%emt 0:04:29]} 24. Bxf4 {[%emt 0:01:21]} Nxf4 {[%emt 0:00:00]} 25. Re3 {[%emt 0:00:41]} e5 {[%emt 0:06:49]} 26. h3 {[%emt 0:02:50]} e4 {[%emt 0:03:47]} 27. Rxe4 {[%emt 0:01:48]} d5 {[%emt 0:05:40]} 28. Rxe8 {[%emt 0:03:12]} Rxe8 {[%emt 0:00:05]} 29. Qd1 {[%emt 0:00:27]} Ne2+ {[%emt 0:00:19]} 30. Kh1 {[%emt 0:00:24]} Nxc1 {[%emt 0:00:08]} 31. Qxc1 {[%emt 0:00:04]} d4 {[%emt 0:00:33]} 32. cxd4 {[%emt 0:00:15]} cxd4 {[%emt 0:00:08]} 33. Qd2 {[%emt 0:01:31]} Qc4 {[%emt 0:00:36]} 34. Ng3 {[%emt 0:00:37]} d3 {[%emt 0:01:11]} 0-1

[Event "XII Paracin Festival 2019"]
[Site "Paracin"]
[Date "2019.07.05"]
[Round "1.22"]
[White "Soysal, Serkan"]
[Black "Djukic, Sandra"]
[Result "1/2-1/2"]
[ECO "A06"]
[WhiteElo "2431"]
[BlackElo "2153"]
[Annotator "NA"]
[PlyCount "148"]
[EventDate "2019.07.05"]
[EventType "swiss"]
[EventCountry "SRB"]
[SourceTitle "playchess.com"]
[Source "ChessBase"]
[SourceQuality "1"]
[TimeControl "5400+30"]

1. Nf3 {[%emt 0:00:00]} d5 {[%emt 0:00:00]} 2. g3 {[%emt 0:00:00]} Nf6 {[%emt 0:00:08]} 3. Bg2 {[%emt 0:00:00]} Bf5 {[%emt 0:00:31]} 4. O-O {[%emt 0:00:00]} c6 {[%emt 0:01:09]} 5. c4 {[%emt 0:00:00]} e6 {[%emt 0:00:28]} 6. cxd5 {[%emt 0:00:01]} exd5 {[%emt 0:00:36]} 7. d3 {[%emt 0:00:05]} h6 {[%emt 0:05:22]} 8. Qb3 {[%emt 0:00:58]} Qb6 {[%emt 0:01:42]} 9. Qc2 {[%emt 0:00:02]} Be7 {[%emt 0:03:02]} 10. Nc3 {[%emt 0:05:08]} Nbd7 {[%emt 0:06:11]} 11. e4 {[%emt 0:00:24]} dxe4 {[%emt 0:01:27]} 12. dxe4 {[%emt 0:00:03]} Bh7 {[%emt 0:03:47]} 13. Be3 {[%emt 0:00:33]} Qa6 {[%emt 0:10:56]} 14. Rad1 {[%emt 0:10:50]} O-O {[%emt 0:03:46]} 15. h3 {[%emt 0:00:03]} Rad8 {[%emt 0:19:33]} 16. a3 {[%emt 0:04:18]} Nb6 {[%emt 0:04:58]} 17. Bd4 {[%emt 0:18:07]} Nbd5 {[%emt 0:01:45]} 18. Nh4 {[%emt 0:11:24]} Nxc3 {[%emt 0:06:23]} 19. Qxc3 {[%emt 0:00:02]} Bxe4 {[%emt 0:18:30]} 20. Bxe4 {[%emt 0:00:55]} Nxe4 {[%emt 0:00:05]} 21. Qe3 {[%emt 0:00:04]} Bxh4 {[%emt 0:00:51]} 22. Qxe4 {[%emt 0:00:09]} Bg5 {[%emt 0:01:31]} 23. h4 {[%emt 0:01:21]} Rde8 {[%emt 0:03:42]} 24. Qg4 {[%emt 0:00:02]} f5 {[%emt 0:02:52]} 25. Qh5 {[%emt 0:00:01]} Bd8 {[%emt 0:00:39]} 26. Qg6 {[%emt 0:00:07]} Re7 {[%emt 0:02:18]} 27. Bc5 {[%emt 0:01:44]} Qc4 {[%emt 0:00:44]} 28. Bxe7 {[%emt 0:01:50]} Bxe7 {[%emt 0:00:05]} 29. Rfe1 {[%emt 0:04:33]} Bf6 {[%emt 0:00:10]} 30. Re8 {[%emt 0:00:07]} Rxe8 {[%emt 0:00:30]} 31. Qxe8+ {[%emt 0:00:07]} Kh7 {[%emt 0:00:01]} 32. h5 {[%emt 0:01:32]} Qg4 {[%emt 0:00:25]} 33. Rd7 {[%emt 0:04:54]} b5 {[%emt 0:01:00]} 34. Qe6 {[%emt 0:09:41]} Qg5 {[%emt 0:01:14]} 35. Rxa7 {[%emt 0:01:45]} Bd4 {[%emt 0:00:35]} 36. Qg6+ {[%emt 0:03:05]} Qxg6 {[%emt 0:00:05]} 37. hxg6+ {[%emt 0:00:01]} Kxg6 {[%emt 0:00:08]} 38. Rc7 {[%emt 0:00:33]} Bxb2 {[%emt 0:00:16]} 39. Rxc6+ {[%emt 0:00:02]} Kg5 {[%emt 0:00:29]} 40. Ra6 {[%emt 0:04:27]} f4 {[%emt 0:01:00]} 41. Ra5 {[%emt 0:04:13]} Kg4 {[%emt 0:00:12]} 42. gxf4 {[%emt 0:06:42]} Kxf4 {[%emt 0:00:07]} 43. Kf1 {[%emt 0:00:07]} g5 {[%emt 0:01:32]} 44. Kg2 {[%emt 0:05:59]} h5 {[%emt 0:00:27]} 45. Kf1 {[%emt 0:02:19]} h4 {[%emt 0:00:42]} 46. Kg2 {[%emt 0:00:22]} Bc1 {[%emt 0:00:25]} 47. Rxb5 {[%emt 0:01:29]} Bxa3 {[%emt 0:00:05]} 48. Ra5 {[%emt 0:00:07]} Bd6 {[%emt 0:00:10]} 49. Ra4+ {[%emt 0:00:13]} Kf5 {[%emt 0:00:06]} 50. Kh3 {[%emt 0:00:13]} Be5 {[%emt 0:00:38]} 51. f3 {[%emt 0:00:45]} Bd6 {[%emt 0:01:23]} 52. Rd4 {[%emt 0:00:20]} Be5 {[%emt 0:00:19]} 53. Rd8 {[%emt 0:00:09]} Kf4 {[%emt 0:00:29]} 54. Rf8+ {[%emt 0:00:39]} Ke3 {[%emt 0:00:04]} 55. Re8 {[%emt 0:02:08]} Kf4 {[%emt 0:00:04]} 56. Re7 {[%emt 0:00:12]} Bd6 {[%emt 0:01:36]} 57. Rf7+ {[%emt 0:00:52]} Ke3 {[%emt 0:00:10]} 58. Kg4 {[%emt 0:00:14]} Bf4 {[%emt 0:00:03]} 59. Re7+ {[%emt 0:00:19]} Kf2 {[%emt 0:00:29]} 60. Ra7 {[%emt 0:00:29]} Kf1 {[%emt 0:01:18]} 61. Ra2 {[%emt 0:01:10]} Kg1 {[%emt 0:00:19]} 62. Re2 {[%emt 0:00:33]} Kf1 {[%emt 0:00:04]} 63. Rb2 {[%emt 0:00:13]} Kg1 {[%emt 0:00:05]} 64. Re2 {[%emt 0:01:14]} Kf1 {[%emt 0:00:04]} 65. Re4 {[%emt 0:00:09]} Kf2 {[%emt 0:00:09]} 66. Ra4 {[%emt 0:00:12]} Kg2 {[%emt 0:00:05]} 67. Rc4 {[%emt 0:00:50]} Kf2 {[%emt 0:00:06]} 68. Rc2+ {[%emt 0:00:33]} Kg1 {[%emt 0:00:25]} 69. Kh3 {[%emt 0:01:25]} Kf1 {[%emt 0:00:05]} 70. Ra2 {[%emt 0:00:03]} Kg1 {[%emt 0:00:26]} 71. Rb2 {[%emt 0:00:45]} Kf1 {[%emt 0:00:05]} 72. Kg4 {[%emt 0:00:04]} Kg1 {[%emt 0:00:10]} 73. Rb4 {[%emt 0:00:01]} Kf2 {[%emt 0:00:12]} 74. Ra4 {[%emt 0:01:33]} Kg2 {[%emt 0:00:09]} 1/2-1/2

[Event "XII Paracin Festival 2019"]
[Site "Paracin"]
[Date "2019.07.05"]
[Round "1.23"]
[White "Sapale Saloni"]
[Black "Lajthajm, Borko"]
[Result "0-1"]
[ECO "B28"]
[WhiteElo "2151"]
[BlackElo "2424"]
[Annotator "NA"]
[PlyCount "94"]
[EventDate "2019.07.05"]
[EventType "swiss"]
[EventCountry "SRB"]
[SourceTitle "playchess.com"]
[Source "ChessBase"]
[SourceQuality "1"]
[TimeControl "5400+30"]

1. e4 c5 {[%emt 0:00:00]} 2. Nf3 {[%emt 0:00:00]} a6 {[%emt 0:00:00]} 3. c3 {[%emt 0:00:13]} d6 {[%emt 0:00:05]} 4. d4 {[%emt 0:00:14]} Nd7 {[%emt 0:00:10]} 5. Bd3 {[%emt 0:00:26]} e6 {[%emt 0:00:38]} 6. O-O {[%emt 0:01:18]} Ne7 {[%emt 0:00:36]} 7. Be3 {[%emt 0:06:04]} Ng6 {[%emt 0:00:47]} 8. Nbd2 {[%emt 0:06:25]} Be7 {[%emt 0:01:00]} 9. g3 {[%emt 0:01:46]} Nf6 {[%emt 0:04:08]} 10. Ne1 {[%emt 0:20:34]} e5 {[%emt 0:01:56]} 11. Be2 {[%emt 0:02:33]} Bh3 {[%emt 0:01:15]} 12. Ng2 {[%emt 0:00:10]} h5 {[%emt 0:00:54]} 13. f3 {[%emt 0:03:59]} h4 {[%emt 0:01:57]} 14. g4 {[%emt 0:04:45]} Nd7 {[%emt 0:04:39]} 15. dxc5 {[%emt 0:20:31]} Nxc5 {[%emt 0:01:43]} 16. Nc4 {[%emt 0:01:27]} b5 {[%emt 0:07:19]} 17. Bxc5 {[%emt 0:01:54]} dxc5 {[%emt 0:00:06]} 18. Nce3 {[%emt 0:00:04]} c4 {[%emt 0:02:45]} 19. Nd5 {[%emt 0:00:39]} Bc5+ {[%emt 0:01:05]} 20. Kh1 {[%emt 0:00:18]} Ra7 {[%emt 0:01:52]} 21. Qc2 {[%emt 0:03:19]} O-O {[%emt 0:03:20]} 22. Rfd1 {[%emt 0:00:57]} Bxg2+ {[%emt 0:05:52]} 23. Kxg2 {[%emt 0:00:07]} Qg5 {[%emt 0:01:25]} 24. Qd2 {[%emt 0:02:49]} h3+ {[%emt 0:00:08]} 25. Kh1 {[%emt 0:08:10]} Qh4 {[%emt 0:01:31]} 26. Qe1 {[%emt 0:02:02]} Bf2 {[%emt 0:02:09]} 27. Qf1 {[%emt 0:00:28]} Nf4 {[%emt 0:02:32]} 28. Nxf4 {[%emt 0:00:14]} exf4 {[%emt 0:00:04]} 29. Rd5 {[%emt 0:00:18]} g6 {[%emt 0:00:17]} 30. a4 {[%emt 0:01:36]} Rb8 {[%emt 0:00:56]} 31. axb5 {[%emt 0:08:15]} axb5 {[%emt 0:00:08]} 32. Rxa7 {[%emt 0:00:06]} Bxa7 {[%emt 0:00:05]} 33. Rd7 {[%emt 0:00:04]} Be3 {[%emt 0:00:33]} 34. Rd1 {[%emt 0:00:43]} Bf2 {[%emt 0:01:21]} 35. Rd7 {[%emt 0:00:20]} Be3 {[%emt 0:01:22]} 36. Rd1 {[%emt 0:00:05]} Kg7 {[%emt 0:02:45]} 37. Qe1 {[%emt 0:04:04]} Qf6 {[%emt 0:01:27]} 38. Rd5 {[%emt 0:00:12]} Qa6 {[%emt 0:01:26]} 39. Bf1 {[%emt 0:01:05]} Qa2 {[%emt 0:00:31]} 40. Qe2 {[%emt 0:00:11]} b4 {[%emt 0:00:20]} 41. Qc2 {[%emt 0:01:25]} b3 {[%emt 0:05:35]} 42. Qe2 {[%emt 0:00:17]} Qb1 {[%emt 0:00:06]} 43. Rd1 {[%emt 0:00:46]} Qc2 {[%emt 0:00:06]} 44. Re1 {[%emt 0:00:08]} Rd8 {[%emt 0:00:17]} 45. Qxc4 {[%emt 0:00:48]} Qf2 {[%emt 0:00:17]} 46. Rxe3 {[%emt 0:00:34]} fxe3 {[%emt 0:00:15]} 47. Be2 {[%emt 0:00:11]} Qg2# 0-1